bitfinex/quotes_ETHUSD_20250324
["timestamp","ask_amount","ask_price","bid_price","bid_amount"]
[1742792017748,4.89893,2041.3,2041.0,5.492]
[1742792018449,5.67818,2041.4,2041.0,10.39155]
[1742792018842,10.57698,2041.4,2041.0,10.39155]
[1742792019047,5.67818,2041.4,2041.0,10.39155]
[1742792019344,4.8991,2041.2,2040.9,4.89973]
[1742792019649,4.8991,2041.2,2040.8,4.90001]
[1742792019822,4.8991,2041.2,2040.8,12.033967]
[1742792020028,4.8994,2041.1,2040.8,7.133957]
[1742792020249,4.8994,2041.1,2040.8,1.658957]
[1742792020843,4.89974,2041.0,2040.6,10.91044]
[1742792021050,4.8998,2040.9,2040.6,11.479]
[1742792021211,4.8998,2040.9,2040.6,6.01]
[1742792021724,4.89974,2041.0,2040.6,10.91049]
[1742792023252,4.90024,2040.8,2040.5,27.085]
[1742792023551,4.90039,2040.7,2040.3,10.35222]
[1742792023756,4.90039,2040.7,2040.3,4.90113]
[1742792024335,4.90039,2040.7,2040.3,9.80218]
[1742792024533,6.15,2040.9,2040.2,4.90147]
[1742792024752,6.15,2040.9,2040.3,0.7793]
[1742792024957,6.15,2040.9,2040.8,4.90003]
[1742792025133,11.04921,2041.2,2040.8,4.90003]
[1742792025335,4.89947,2041.1,2040.7,4.90019]
[1742792025854,4.89966,2041.0,2040.6,4.90049]
[1742792026455,9.79945,2041.0,2040.6,4.90049]
[1742792026659,4.89982,2040.9,2040.6,4.90049]
[1742792026825,4.89982,2040.9,2040.5,10.35762]
[1742792027023,4.89982,2040.9,2040.5,11.961411]
[1742792027923,4.89982,2040.9,2040.5,6.504411]
[1742792029134,9.79978,2040.9,2040.5,6.504411]
[1742792029336,4.89982,2040.9,2040.5,6.504411]
[1742792029961,6.15,2041.2,2040.5,1.603791]
[1742792030255,6.15,2041.2,2040.9,4.89959]
[1742792031056,6.15,2041.2,2040.8,10.33]
[1742792031260,6.9026,2041.2,2040.8,10.33]
[1742792031971,11.80178,2041.2,2040.7,9.80021]
[1742792032188,16.70103,2041.2,2040.7,13.14550647]
[1742792032468,4.89976,2041.0,2040.5,31.99072]
[1742792032661,4.90016,2040.8,2040.5,27.09]
[1742792033461,4.89981,2040.9,2040.5,27.09]
[1742792033762,4.90022,2040.8,2040.5,27.09]
[1742792034158,4.90029,2040.7,2040.3,5.68035]
[1742792034367,4.90029,2040.7,2040.3,6.75294008]
[1742792034567,4.90064,2040.6,2040.1,9.80327]
[1742792034774,4.90064,2040.6,2040.1,4.90157]
[1742792034968,4.90091,2040.5,2040.1,4.90157]
[1742792035277,4.90087,2040.5,2040.0,4.90178]
[1742792035572,4.90087,2040.5,2040.1,4.90171]
[1742792036972,0.7528,2041.3,2040.2,0.8257]
[1742792037173,11.0497,2041.0,2040.5,9.80135]
[1742792037476,6.15,2041.0,2040.5,4.90064]
[1742792037869,4.89989,2040.9,2040.5,4.90064]
[1742792038073,15.94987,2040.9,2040.5,4.90064]
[1742792038379,15.94987,2040.9,2040.4,4.90093]
[1742792038674,6.15,2040.9,2040.6,4.90049]
[1742792039574,6.15,2040.9,2040.5,4.90071]
[1742792039877,11.04988,2040.9,2040.4,6.00866685]
[1742792040080,0.7528,2040.8,2040.4,10.90956685]
[1742792040269,0.7528,2040.8,2040.5,4.90073]
[1742792041045,4.90036,2040.7,2040.3,10.28322]
[1742792041474,4.90057,2040.6,2040.3,5.382]
[1742792041675,4.90057,2040.6,2040.2,4.90132]
[1742792041676,9.80129,2040.6,2040.2,4.90132]
[1742792041873,4.90076,2040.5,2040.1,6.25625718]
[1742792042183,9.80171,2040.5,2040.1,4.90164]
[1742792042882,4.90076,2040.5,2040.1,4.90164]
[1742792043962,9.80172,2040.5,2040.1,4.90164]
[1742792044165,4.90076,2040.5,2040.1,4.90164]
[1742792045496,0.7528,2040.4,2040.1,4.90164]
[1742792046492,5.6538,2040.4,2040.1,4.90164]
[1742792047995,5.6538,2040.4,2040.0,4.90177]
[1742792048191,4.90157,2040.2,2039.9,0.45041209]
[1742792048491,4.90156,2040.2,2039.9,0.45041209]
[1742792048787,4.90181,2040.1,2039.9,0.45041209]
[1742792048987,4.90196,2040.0,2039.7,27.09]
[1742792049158,5.65926,2040.0,2039.7,27.09]
[1742792049354,4.9028,2039.7,2039.2,5.68777]
[1742792049560,4.9028,2039.7,2039.3,4.90348]
[1742792051879,4.90279,2039.7,2039.3,4.90348]
[1742792052074,4.90306,2039.6,2039.2,6.13845548]
[1742792052293,4.90274,2039.7,2039.3,4.90363]
[1742792052604,4.90303,2039.6,2039.2,6.53913355]
[1742792052767,4.90272,2039.7,2039.3,4.9035]
[1742792053479,9.8056,2039.7,2039.3,4.9035]
[1742792054235,6.9073,2040.0,2039.4,4.90337]
[1742792054534,6.15,2040.2,2039.8,4.90234]
[1742792054827,4.90221,2039.9,2039.5,12.46433262]
[1742792055032,4.90197,2040.0,2039.6,4.90285]
[1742792055215,10.99054,2040.3,2039.5,5.393427]
[1742792055216,4.90235,2039.9,2039.5,5.393407]
[1742792055415,5.70389,2039.8,2039.4,21.10462]
[1742792055728,4.90277,2039.7,2039.4,11.298]
[1742792055932,4.90302,2039.6,2039.2,4.90382]
[1742792056147,9.80617,2039.6,2039.2,4.90382]
[1742792056442,0.8013,2039.8,2039.2,4.90372]
[1742792056608,4.9027,2039.7,2039.3,4.90346]
[1742792056943,9.80557,2039.7,2039.3,6.00879938]
[1742792057443,4.90295,2039.6,2039.3,1.10533938]
[1742792057603,4.90295,2039.6,2039.2,4.90371]
[1742792058812,4.90321,2039.5,2039.1,10.62482]
[1742792059012,4.90321,2039.5,2039.1,5.72082]
[1742792059218,9.80657,2039.5,2039.1,5.72082]
[1742792059418,9.80657,2039.5,2039.1,4.90392]
[1742792059649,4.9034,2039.4,2039.1,4.90392]
[1742792059812,4.9034,2039.4,2039.0,4.9043]
[1742792060019,4.90398,2039.2,2038.7,10.17107]
[1742792060414,4.90413,2039.1,2038.7,10.17107]
[1742792060738,4.90413,2039.1,2038.7,4.90507]
[1742792062827,4.90398,2039.2,2038.7,4.9049]
[1742792063022,4.90398,2039.2,2038.8,4.90478]
[1742792064352,11.85495,2039.3,2038.8,1.505768]
[1742792064353,0.8013,2039.3,2038.8,1.505768]
[1742792064651,0.8013,2039.3,2039.0,4.90418]
[1742792064810,0.8013,2039.3,2038.8,1.505768]
[1742792065010,0.7853,2039.6,2039.2,4.90374]
[1742792065253,0.7853,2039.6,2039.3,4.9036]
[1742792065844,5.6883,2039.6,2039.2,4.90387]
[1742792066563,4.90317,2039.5,2039.2,4.90387]
[1742792066844,4.90344,2039.4,2039.0,15.04961]
[1742792067051,4.90344,2039.4,2039.0,4.90425]
[1742792067347,4.90321,2039.5,2039.1,4.90412]
[1742792068058,5.68823,2039.6,2039.2,4.90387]
[1742792069138,10.59135,2039.6,2039.2,4.90387]
[1742792069464,9.80654,2039.5,2039.1,4.90406]
[1742792070561,4.90317,2039.5,2039.1,4.90406]
[1742792070767,4.90317,2039.5,2039.1,4.90398]
[1742792070936,9.80651,2039.5,2039.1,4.90398]
[1742792071466,4.90317,2039.5,2039.1,4.90398]
[1742792071662,9.80653,2039.5,2039.4,0.96080549]
[1742792072262,4.90317,2039.5,2039.4,0.96080549]
[1742792075865,5.68822,2039.6,2039.4,0.96080549]
[1742792076068,4.90316,2039.5,2039.4,0.96080549]
[1742792077738,0.8166,2039.9,2039.4,0.96080549]
[1742792077943,0.8166,2039.9,2039.6,4.90283]
[1742792078473,0.8166,2039.9,2039.6,4.90277]
[1742792078843,6.15,2040.0,2039.6,4.90277]
[1742792079045,6.15,2040.0,2039.7,4.90258]
[1742792079247,4.90173,2040.1,2039.7,4.90258]
[1742792079546,4.90196,2040.0,2039.6,4.9029]
[1742792080688,4.90176,2040.1,2039.6,4.90273]
[1742792081050,4.90176,2040.1,2039.7,4.90268]
[1742792082126,4.90197,2040.0,2039.6,4.90273]
[1742792083179,4.90172,2040.1,2039.6,4.90273]
[1742792083578,9.80364,2040.1,2039.6,4.90273]
[1742792084303,4.90202,2040.0,2039.6,4.90273]
[1742792084699,9.80367,2040.1,2039.6,9.80542]
[1742792084920,9.80367,2040.1,2039.6,4.90269]
[1742792085129,4.90196,2040.0,2039.6,4.90269]
[1742792085433,4.90178,2040.1,2039.6,4.90269]
[1742792085586,5.71808,2040.2,2039.7,4.90246]
[1742792087314,5.71808,2040.2,2039.8,4.90235]
[1742792088538,10.61978,2040.2,2039.7,4.90246]
[1742792090851,4.90196,2040.0,2039.5,4.90313]
[1742792091065,4.90229,2039.9,2039.5,4.90313]
[1742792091219,4.90176,2040.1,2039.6,4.9029]
[1742792091546,4.90176,2040.1,2039.7,4.90265]
[1742792092432,4.90176,2040.1,2039.7,5.883205]
[1742792092750,4.90176,2040.1,2039.7,4.90265]
[1742792093054,9.80366,2040.1,2039.7,4.90265]
[1742792093359,9.80366,2040.1,2039.6,4.90286]
[1742792094227,4.90176,2040.1,2039.6,9.80565]
[1742792094434,9.80366,2040.1,2039.6,4.90279]
[1742792094663,9.80366,2040.1,2039.9,0.97962389]
[1742792094868,4.90176,2040.1,2039.9,0.97962389]
[1742792095666,9.80366,2040.1,2039.9,0.97962389]
[1742792096036,9.80368,2040.1,2039.9,0.97962389]
[1742792096253,9.80367,2040.1,2039.9,0.97962389]
[1742792096422,9.80364,2040.1,2039.9,0.97962389]
[1742792096631,4.90176,2040.1,2039.9,0.97962389]
[1742792097932,4.90196,2040.0,2039.9,0.97962389]
[1742792099256,5.66146,2040.0,2039.9,0.97962389]
[1742792099455,10.5636,2040.0,2039.5,4.90303]
[1742792100097,4.90222,2039.9,2039.5,4.90303]
[1742792100300,4.90222,2039.9,2039.4,4.90338]
[1742792100593,9.80521,2039.8,2039.4,4.90338]
[1742792100800,4.90318,2039.5,2039.2,5.68951]
[1742792101099,4.90318,2039.5,2039.2,4.90381]
[1742792101298,4.90345,2039.4,2039.1,27.112]
[1742792101586,4.90345,2039.4,2039.2,1.00467919]
[1742792101587,4.90347,2039.4,2039.2,1.00467919]
[1742792101955,4.90318,2039.5,2039.2,1.00467919]
[1742792102489,0.7595,2039.8,2039.2,2.13499964]
[1742792102679,0.7595,2039.8,2039.5,4.90298]
[1742792103262,5.66152,2040.0,2039.5,4.90298]
[1742792103464,5.66152,2040.0,2039.4,0.7857]
[1742792103465,4.90231,2039.9,2039.4,5.68904]
[1742792103787,4.90259,2039.8,2039.4,5.68904]
[1742792103988,4.90259,2039.8,2039.4,7.35717392]
[1742792104393,0.7595,2040.0,2039.6,4.90291]
[1742792104394,5.66146,2040.0,2039.6,4.90291]
[1742792104592,4.90221,2039.9,2039.4,5.68908]
[1742792104983,4.90252,2039.8,2039.4,5.68908]
[1742792105383,4.90221,2039.9,2039.5,4.90313]
[1742792105581,4.90221,2039.9,2039.5,5.93795454]
[1742792105787,4.90248,2039.8,2039.7,0.98018318]
[1742792106196,4.90248,2039.8,2039.4,5.68904]
[1742792106363,9.80515,2039.8,2039.4,5.68904]
[1742792107362,4.90274,2039.7,2039.4,0.7857]
[1742792107573,4.90274,2039.7,2039.3,4.90362]
[1742792107897,4.90274,2039.7,2039.3,5.962719]
[1742792108068,4.90274,2039.7,2039.3,1.059099]
[1742792108269,9.80561,2039.7,2039.3,5.962629]
[1742792108465,4.90274,2039.7,2039.3,5.962629]
[1742792108665,4.90285,2039.7,2039.3,5.962629]
[1742792108983,9.80569,2039.7,2039.3,5.962629]
[1742792109492,4.90284,2039.7,2039.3,5.962629]
[1742792110004,9.80573,2039.7,2039.3,5.962629]
[1742792110294,4.90297,2039.6,2039.3,1.059099]
[1742792110470,4.90297,2039.6,2039.2,5.68725]
[1742792110664,4.90328,2039.5,2039.2,0.7835]
[1742792111199,4.90328,2039.5,2039.2,5.68737]
[1742792111767,4.90328,2039.5,2039.2,0.7835]
[1742792111988,4.90328,2039.5,2039.1,4.90396]
[1742792112903,4.90328,2039.5,2039.1,7.88920657]
[1742792113103,4.90328,2039.5,2039.1,12.79315657]
[1742792114098,9.80663,2039.5,2039.1,7.88919657]
[1742792114305,4.90341,2039.4,2039.1,7.88919657]
[1742792114499,4.90328,2039.5,2039.1,7.88919657]
[1742792114805,4.90341,2039.4,2039.1,7.88919657]
[1742792115100,4.90341,2039.4,2039.0,5.68785]
[1742792115301,4.90389,2039.2,2038.8,5.68824]
[1742792116599,9.80752,2039.3,2038.9,4.90453]
[1742792116803,9.80752,2039.3,2038.9,5.963799]
[1742792117005,4.9039,2039.2,2038.9,1.059269]
[1742792117183,4.9039,2039.2,2038.8,5.68816]
[1742792117383,4.9039,2039.2,2038.8,10.59283]
[1742792117583,4.90364,2039.3,2038.9,4.90458]
[1742792117775,9.80747,2039.3,2038.9,4.90458]
[1742792118106,4.9039,2039.2,2038.9,4.90458]
[1742792118304,4.9039,2039.2,2038.8,0.7835]
[1742792118477,4.9039,2039.2,2038.8,4.566336]
[1742792118677,4.9039,2039.2,2038.8,9.471086]
[1742792118886,5.66965,2039.5,2038.8,9.586336]
[1742792119106,5.66965,2039.5,2039.1,5.87639479]
[1742792120214,5.66965,2039.5,2039.1,6.95446927]
[1742792121012,0.7729,2039.9,2039.2,0.8048]
[1742792121219,4.90252,2039.8,2039.4,4.90331]
[1742792121786,4.90305,2039.6,2039.2,4.90373]
[1742792122224,4.90269,2039.7,2039.3,4.90355]
[1742792122423,4.90269,2039.7,2039.3,9.80707]
[1742792122711,4.90269,2039.7,2039.3,9.80703]
[1742792123395,4.90246,2039.8,2039.4,4.90333]
[1742792123796,4.90271,2039.7,2039.4,4.90333]
[1742792124219,4.90246,2039.8,2039.4,4.90333]
[1742792124887,4.90268,2039.7,2039.4,4.90333]
[1742792125324,9.80508,2039.8,2039.4,4.90333]
[1742792125500,4.90269,2039.7,2039.3,4.90357]
[1742792126219,4.90269,2039.7,2039.3,9.80712]
[1742792126517,4.90245,2039.8,2039.4,4.90328]
[1742792126818,5.67519,2039.9,2039.6,1.00457787]
[1742792127114,4.90268,2039.7,2039.6,1.00457787]
[1742792129226,4.90299,2039.6,2039.2,4.90372]
[1742792129827,4.90299,2039.6,2039.4,0.96051467]
[1742792130033,4.90272,2039.7,2039.4,0.96051467]
[1742792133094,4.90294,2039.6,2039.4,0.96051467]
[1742792135026,9.80606,2039.6,2039.4,0.96051467]
[1742792135223,4.90294,2039.6,2039.4,0.96051467]
[1742792135443,4.9027,2039.7,2039.4,0.96051467]
[1742792137343,4.9027,2039.7,2039.4,5.86388467]
[1742792137944,0.7808,2041.0,2039.7,0.8174]
[1742792138144,0.7808,2041.0,2040.5,5.71805]
[1742792138351,5.67855,2041.8,2041.4,4.89846]
[1742792138513,0.7808,2041.8,2041.5,4.89824]
[1742792138845,0.7808,2041.8,2041.0,5.8374]
[1742792138846,10.57623,2041.8,2041.3,4.89879]
[1742792139046,4.89826,2041.6,2041.2,4.89896]
[1742792139218,4.89862,2041.4,2041.1,5.019]
[1742792139423,5.388492,2041.4,2041.1,5.019]
[1742792139830,5.388492,2041.4,2041.0,5.71675]
[1742792139831,6.169292,2041.4,2041.0,5.71675]
[1742792140142,6.169292,2041.4,2041.0,10.73475]
[1742792140347,1.270662,2041.4,2041.0,10.73475]
[1742792140641,0.7808,2041.4,2041.0,10.73475]
[1742792140839,0.7808,2041.4,2041.0,5.71675]
[1742792141047,0.7808,2041.4,2041.0,10.73075]
[1742792141212,5.67941,2041.4,2041.0,5.8304]
[1742792141616,4.89884,2041.3,2040.9,5.009]
[1742792141848,9.79779,2041.3,2040.8,4.89998]
[1742792142043,4.89884,2041.3,2040.8,4.89998]
[1742792142245,0.7808,2041.4,2040.8,5.007]
[1742792142246,4.89946,2041.1,2040.8,5.007]
[1742792142418,4.89916,2041.2,2040.8,8.790486]
[1742792142618,4.89916,2041.2,2040.8,3.783486]
[1742792142844,9.79837,2041.2,2040.8,3.783486]
[1742792143223,4.89916,2041.2,2040.8,8.683516]
[1742792143428,9.79836,2041.2,2040.8,8.683516]
[1742792143864,4.89916,2041.2,2040.8,8.683516]
[1742792144369,9.79845,2041.2,2040.8,3.783486]
[1742792144734,4.89916,2041.2,2040.8,3.783486]
[1742792144935,4.89916,2041.2,2040.9,1.9399116]
[1742792145166,9.79845,2041.2,2040.9,1.9399116]
[1742792145354,4.89916,2041.2,2040.9,1.9399116]
[1742792146066,4.89933,2041.1,2040.8,3.783486]
[1742792146770,4.89933,2041.1,2040.6,32.01051]
[1742792146771,4.89967,2041.0,2040.6,32.1]
[1742792146960,4.89967,2041.0,2040.6,27.11]
[1742792147147,4.89967,2041.0,2040.6,32.01049]
[1742792147477,9.79839,2041.2,2040.8,4.90003]
[1742792148338,4.89935,2041.1,2040.7,4.90023]
[1742792148535,4.89919,2041.2,2040.9,0.8174]
[1742792148741,4.89884,2041.3,2040.9,5.71708]
[1742792149669,4.89917,2041.2,2040.9,0.8174]
[1742792150247,4.89934,2041.1,2040.7,5.71764]
[1742792150969,9.79844,2041.2,2040.7,10.61769]
[1742792151138,9.79844,2041.2,2040.7,9.989219]
[1742792151338,4.89934,2041.1,2040.7,14.889389]
[1742792151547,4.89917,2041.2,2040.7,14.889269]
[1742792151750,9.79845,2041.2,2040.7,9.989219]
[1742792152034,4.89917,2041.2,2040.8,4.90003]
[1742792152243,4.89917,2041.2,2040.8,9.0999549]
[1742792152569,4.89912,2041.2,2040.8,9.0999349]
[1742792152869,4.89932,2041.1,2040.8,4.1999249]
[1742792153071,4.89932,2041.1,2040.7,5.71767]
[1742792153245,4.89932,2041.1,2040.8,4.90002]
[1742792153444,4.89913,2041.2,2040.8,4.90002]
[1742792153674,9.79842,2041.2,2040.8,4.90002]
[1742792153869,4.89935,2041.1,2040.7,5.71755]
[1742792154076,4.89935,2041.1,2040.7,6.788305]
[1742792154676,4.89911,2041.2,2040.8,4.90001]
[1742792156456,4.89911,2041.2,2040.8,4.89989]
[1742792156782,9.7984,2041.2,2040.8,4.89989]
[1742792157082,4.89934,2041.1,2040.8,4.89989]
[1742792157495,4.89911,2041.2,2040.8,4.89989]
[1742792157783,4.89911,2041.2,2040.8,5.5786945]
[1742792159288,4.89884,2041.3,2040.9,4.89978]
[1742792159490,4.89909,2041.2,2040.9,4.89978]
[1742792159663,4.89909,2041.2,2040.8,10.4786845]
[1742792160055,4.89909,2041.2,2040.8,5.5787145]
[1742792161475,4.89909,2041.2,2040.8,10.4785745]
[1742792162171,9.79835,2041.2,2040.8,4.89986]
[1742792162477,4.89909,2041.2,2040.9,4.89979]
[1742792163078,4.89844,2041.5,2041.2,0.8221]
[1742792163390,4.8983,2041.6,2041.2,5.72107]
[1742792163775,4.89802,2041.7,2041.3,4.89873]
[1742792163954,9.79608,2041.7,2041.3,4.89873]
[1742792164159,4.89802,2041.7,2041.3,4.89873]
[1742792164883,5.72608,2041.8,2041.3,4.89883]
[1742792165080,5.72608,2041.8,2041.4,4.89838]
[1742792165289,4.89768,2041.8,2041.4,9.79681]
[1742792165460,4.89768,2041.8,2041.4,4.89838]
[1742792165791,4.8974,2041.9,2041.5,4.89831]
[1742792166491,5.72571,2042.0,2041.6,4.898]
[1742792166793,4.89757,2041.9,2041.5,4.89832]
[1742792167091,4.89789,2041.7,2041.3,9.84076]
[1742792167561,4.89816,2041.6,2041.2,5.72116]
[1742792167767,4.89816,2041.6,2041.2,10.65803]
[1742792168088,5.72346,2041.6,2041.2,9.83593]
[1742792168267,5.72346,2041.6,2041.2,4.89893]
[1742792168473,4.89816,2041.6,2041.2,9.79781]
[1742792168786,5.72312,2041.8,2041.1,9.8363]
[1742792168787,0.8253,2041.8,2041.1,9.8363]
[1742792168999,4.89821,2041.6,2041.1,9.8362]
[1742792169158,4.89821,2041.6,2041.1,4.8992]
[1742792169363,0.09219966,2041.5,2041.1,9.83412]
[1742792169559,0.09219966,2041.5,2041.2,4.89906]
[1742792169790,0.09219966,2041.5,2041.1,9.83426]
[1742792169998,4.89821,2041.6,2041.2,4.89907]
[1742792170207,0.09335448,2041.5,2041.2,4.89907]
[1742792170766,4.89821,2041.6,2041.2,4.89907]
[1742792170967,0.09335448,2041.5,2041.2,4.89907]
[1742792171792,4.99173448,2041.5,2041.1,15.88883331]
[1742792171971,4.89838,2041.5,2041.1,4.935]
[1742792172171,4.99208448,2041.4,2041.1,4.935]
[1742792172371,4.89895,2041.3,2041.0,0.7843]
[1742792172566,9.79799,2041.3,2041.0,0.7843]
[1742792172794,4.99248448,2041.2,2040.9,0.57218048]
[1742792172999,4.89955,2041.0,2040.9,0.57218048]
[1742792173189,5.81836194,2041.0,2040.8,0.57218048]
[1742792173392,4.89979,2040.9,2040.8,0.57218048]
[1742792174802,4.90063,2040.6,2040.3,4.923]
[1742792175800,4.90063,2040.6,2040.2,5.68557]
[1742792176015,10.64691,2041.0,2040.3,1.11594205]
[1742792176498,4.90063,2040.6,2040.3,1.11594205]
[1742792176711,9.80136,2040.6,2040.3,1.11594205]
[1742792176917,4.90086,2040.5,2040.2,0.7843]
[1742792177472,4.90063,2040.6,2040.2,5.68576]
[1742792177669,4.90063,2040.6,2040.3,4.90123]
[1742792177973,4.90063,2040.6,2040.2,5.68576]
[1742792178320,4.90063,2040.6,2040.3,1.060376]
[1742792178474,4.90019,2040.8,2040.4,4.90096]
[1742792178911,0.8253,2041.2,2040.7,4.90023]
[1742792179114,5.72456,2041.2,2040.6,10.59581]
[1742792179927,4.8994,2041.1,2040.6,10.59581]
[1742792180233,4.89959,2041.0,2040.6,12.14537]
[1742792180434,4.89959,2041.0,2040.6,17.04578]
[1742792180590,4.89959,2041.0,2040.6,12.14537]
[1742792180992,0.8253,2041.2,2040.6,12.14537]
[1742792180993,4.90004,2040.8,2040.6,5.6953]
[1742792181186,4.90004,2040.8,2040.6,4.911]
[1742792181406,4.89895,2041.3,2040.6,5.27512698]
[1742792181611,4.89868,2041.4,2040.9,4.89961]
[1742792182413,4.89868,2041.4,2041.0,4.89942]
[1742792183112,6.161597,2041.7,2041.1,4.89919]
[1742792183317,4.89838,2041.5,2041.2,1.268519]
[1742792183511,9.79695,2041.5,2041.2,0.7786]
[1742792183716,4.89875,2041.4,2041.0,0.7786]
[1742792184035,4.89908,2041.2,2040.8,10.61162]
[1742792184237,4.89908,2041.2,2040.8,5.67862]
[1742792184441,4.89936,2041.1,2040.8,1.8729017]
[1742792184649,4.89908,2041.2,2040.8,6.7728417]
[1742792184938,9.79836,2041.2,2040.8,6.7728417]
[1742792185151,4.89939,2041.1,2040.8,0.7786]
[1742792186133,4.89908,2041.2,2040.8,5.67852]
[1742792186309,4.89908,2041.2,2040.8,10.57839]
[1742792186520,5.67259,2041.3,2040.9,4.89979]
[1742792186918,7.4e-07,2040.0,2039.9,6.86939091]
[1742792187126,5.67259,2041.3,2040.8,4.89981]
[1742792187449,4.8991,2041.2,2040.7,4.90027]
[1742792187649,4.8991,2041.2,2040.6,9.82345]
[1742792187947,4.8991,2041.2,2040.7,0.982372]
[1742792189661,9.79837,2041.2,2040.7,0.982372]
[1742792189819,4.89953,2041.1,2040.7,0.982372]
[1742792190022,4.89949,2041.1,2040.7,0.7786]
[1742792190323,4.89946,2041.1,2040.7,0.7786]
[1742792190923,9.799,2041.1,2040.7,0.7786]
[1742792191121,4.89946,2041.1,2040.7,0.7786]
[1742792191659,4.89763,2041.8,2041.1,4.89911]
[1742792191820,5.67123,2041.9,2041.3,4.89883]
[1742792192026,5.67123,2041.9,2041.4,0.04898293]
[1742792192461,5.67123,2041.9,2041.3,4.9478109]
[1742792192686,0.7737,2042.3,2041.5,5.67688]
[1742792192865,4.89683,2042.2,2041.5,6.74406615]
[1742792193158,4.89705,2042.1,2041.5,11.64226615]
[1742792193317,4.89705,2042.1,2041.5,6.74398615]
[1742792193521,9.79418,2042.1,2041.5,6.74398615]
[1742792193719,4.89723,2042.0,2041.5,6.74398615]
[1742792194000,4.89704,2042.1,2041.5,6.74398615]
[1742792194117,4.89704,2042.1,2041.5,11.64215615]
[1742792194317,3.0,2042.1,2041.6,4.89811]
[1742792194550,7.89699,2042.1,2041.6,4.89811]
[1742792194734,7.89699,2042.1,2041.5,6.74408615]
[1742792195221,4.89733,2042.0,2041.5,0.7786]
[1742792195451,4.89752,2041.9,2041.5,0.7786]
[1742792195651,9.79512,2041.9,2041.5,0.7786]
[1742792195851,4.89752,2041.9,2041.5,0.7786]
[1742792196055,4.89764,2041.8,2041.5,0.7786]
[1742792196652,4.89797,2041.7,2041.5,0.7786]
[1742792197659,4.89797,2041.7,2041.3,5.7302]
[1742792197961,0.8209,2041.9,2041.3,5.7302]
[1742792197962,9.79647,2041.6,2041.3,0.7732]
[1742792198166,4.89845,2041.5,2041.1,5.7242]
[1742792198322,4.89866,2041.4,2041.1,5.7242]
[1742792198532,4.89866,2041.4,2041.1,0.7732]
[1742792198867,4.89886,2041.3,2040.9,0.7732]
[1742792199750,4.89912,2041.2,2040.9,0.7732]
[1742792199957,4.89912,2041.2,2040.7,5.7192]
[1742792200352,4.8994,2041.1,2040.7,5.7192]
[1742792200754,4.8994,2041.1,2040.7,0.7732]
[1742792203395,9.79893,2041.1,2040.7,0.7732]
[1742792203599,4.8997,2041.0,2040.7,0.7732]
[1742792206854,5.72022,2041.1,2040.7,0.7732]
[1742792207060,10.61975,2041.1,2040.7,0.7732]
[1742792208099,5.72022,2041.1,2040.7,0.7732]
[1742792208401,4.89964,2041.0,2040.7,0.7732]
[1742792208701,5.72022,2041.1,2040.5,0.35893395]
[1742792208702,7.90051,2040.6,2040.5,0.35893395]
[1742792210173,4.90112,2040.4,2040.1,0.96623004]
[1742792210577,3.0,2040.6,2040.1,0.96623004]
[1742792210774,4.90134,2040.3,2040.1,0.96623004]
[1742792211166,3.0,2040.6,2040.1,0.96623004]
[1742792211363,4.90089,2040.5,2040.1,0.96623004]
[1742792211563,4.90114,2040.4,2040.1,0.96623004]
[1742792212194,4.90114,2040.4,2040.1,0.03018104]
[1742792213611,4.90095,2040.5,2040.1,0.03018104]
[1742792213916,4.90101,2040.4,2040.1,0.03018104]
[1742792214581,4.90128,2040.3,2040.1,0.03018104]
[1742792217012,4.90109,2040.4,2040.1,0.03018104]
[1742792217186,4.90125,2040.3,2040.1,0.03018104]
[1742792219419,4.90125,2040.3,2040.2,0.7975]
[1742792219611,4.90107,2040.4,2040.2,0.7975]
[1742792220117,9.8023,2040.4,2040.1,0.03018104]
[1742792220515,4.90126,2040.3,2040.1,0.03018104]
[1742792222213,9.80268,2040.3,2040.1,0.03018104]
[1742792222397,4.90126,2040.3,2040.1,0.03018104]
[1742792224308,4.90101,2040.4,2040.1,0.03018104]
[1742792227026,9.80219,2040.4,2040.1,0.03018104]
[1742792228519,4.90125,2040.3,2040.1,0.03018104]
[1742792229501,5.391375,2040.3,2040.1,0.03018104]
[1742792229830,4.90148,2040.2,2040.1,0.03018104]
[1742792230533,0.490125,2040.3,2040.1,0.03018104]
[1742792230918,5.391515,2040.3,2040.1,0.03018104]
[1742792233838,4.90148,2040.2,2040.1,0.03018104]
[1742792234133,0.7755,2040.2,2039.6,0.7653]
[1742792234333,4.90191,2040.1,2039.6,0.7653]
[1742792234703,4.90199,2040.0,2039.6,0.7653]
[1742792235109,4.90199,2040.0,2039.9,0.99133063]
[1742792238750,4.90199,2040.0,2039.9,0.98631091]
[1742792239157,4.90199,2040.0,2039.3,32.0016]
[1742792239158,4.90243,2039.9,2039.3,0.7653]
[1742792239451,4.90244,2039.8,2039.3,0.7653]
[1742792239649,4.90243,2039.9,2039.7,0.99298439]
[1742792239650,4.90225,2039.9,2039.7,0.99298439]
[1742792239850,7.908,2040.3,2039.7,1.75828439]
[1742792239851,0.7755,2040.2,2039.7,1.75828439]
[1742792240053,7.90133,2040.3,2039.7,7.32689083]
[1742792240349,4.90148,2040.2,2039.7,2.42442083]
[1742792240553,3.0,2040.3,2039.7,1.75828439]
[1742792240768,0.7755,2040.4,2039.7,1.75828439]
[1742792240924,4.90037,2040.7,2039.9,4.90197]
[1742792240925,5.67607,2040.6,2039.9,4.90197]
[1742792241246,7.90076,2040.5,2039.9,0.0490143]